{"text_format":"3","workbook":"xlsx","n_sheets":5,"sheets":["O projektu","Výběr_Kritéria,Varianty","Ohodnocení","Výpočet,Hodnocení","Seznamy"],"not_rendered":{"images":4,"defined_names":10},"read":"whole","date_system":"1900"}

{"sheet":"O projektu","index":0,"n_rows":51,"n_cols":1,"rows_kept":51,"merged":[[0,0,0,13],[50,0,50,7]]}
["Primární určení pořadí variant vhodnosti opatření na území s agrárními valy.                                                            ČZU, FŽP, KBÚK, © 2011"]
[]
["Realizované výpočetní prostředí bylo vytvořeno na základě grantu Mininisterstva zemědělství ČR  QH82126."]
["Zajištění harmonizace krajinotvorné, hydrologické a produkční funkce agrárních valů a teras pro diverzifikaci ativit na venkově."]
{"$rows_empty":46}
["Výpočetní prostředí je realizováno formou prázdné šablony Microsoft Excel 2010."]

{"sheet":"Výběr_Kritéria,Varianty","index":1,"n_rows":23,"n_cols":6,"rows_kept":23,"merged":[[1,1,1,4],[4,4,4,5]]}
[]
[null,"Zadávání vstupních údajů - výběr kritérii a variant"]
[]
[]
[null,"Kritérium","Jednotky",null,"Varianta"]
[]
[null,null,{"$f":"IF(Tabulka2[]=\"\",\"\",VLOOKUP(Tabulka2[],Seznamy!B5:C21,2,0))","v":""},null,null,{"$f":"IF(Varianty=\"\",\"\",VLOOKUP(Varianty,Seznamy!E5:F8,2,0))","v":""}]
[null,null,{"$f":"IF(Tabulka2[]=\"\",\"\",VLOOKUP(Tabulka2[],Seznamy!B6:C22,2,0))","v":""},null,null,{"$f":"IF(Varianty=\"\",\"\",VLOOKUP(Varianty,Seznamy!E5:F8,2,0))","v":""}]
[null,null,{"$f":"IF(Tabulka2[]=\"\",\"\",VLOOKUP(Tabulka2[],Seznamy!B7:C23,2,0))","v":""},null,null,{"$f":"IF(Varianty=\"\",\"\",VLOOKUP(Varianty,Seznamy!E5:F8,2,0))","v":""}]
[null,null,{"$f":"IF(Tabulka2[]=\"\",\"\",VLOOKUP(Tabulka2[],Seznamy!B8:C24,2,0))","v":""},null,null,{"$f":"IF(Varianty=\"\",\"\",VLOOKUP(Varianty,Seznamy!E5:F8,2,0))","v":""}]
[null,null,{"$f":"IF(Tabulka2[]=\"\",\"\",VLOOKUP(Tabulka2[],Seznamy!B9:C25,2,0))","v":""}]
[null,null,{"$f":"IF(Tabulka2[]=\"\",\"\",VLOOKUP(Tabulka2[],Seznamy!B10:C26,2,0))","v":""}]
[null,null,{"$f":"IF(Tabulka2[]=\"\",\"\",VLOOKUP(Tabulka2[],Seznamy!B11:C27,2,0))","v":""}]
[null,null,{"$f":"IF(Tabulka2[]=\"\",\"\",VLOOKUP(Tabulka2[],Seznamy!B12:C28,2,0))","v":""}]
[null,null,{"$f":"IF(Tabulka2[]=\"\",\"\",VLOOKUP(Tabulka2[],Seznamy!B13:C29,2,0))","v":""}]
[null,null,{"$f":"IF(Tabulka2[]=\"\",\"\",VLOOKUP(Tabulka2[],Seznamy!B14:C30,2,0))","v":""}]
[null,null,{"$f":"IF(Tabulka2[]=\"\",\"\",VLOOKUP(Tabulka2[],Seznamy!B15:C31,2,0))","v":""}]
[null,null,{"$f":"IF(Tabulka2[]=\"\",\"\",VLOOKUP(Tabulka2[],Seznamy!B16:C32,2,0))","v":""}]
[null,null,{"$f":"IF(Tabulka2[]=\"\",\"\",VLOOKUP(Tabulka2[],Seznamy!B17:C33,2,0))","v":""}]
[null,null,{"$f":"IF(Tabulka2[]=\"\",\"\",VLOOKUP(Tabulka2[],Seznamy!B18:C34,2,0))","v":""}]
[null,null,{"$f":"IF(Tabulka2[]=\"\",\"\",VLOOKUP(Tabulka2[],Seznamy!B19:C35,2,0))","v":""}]
[null,null,{"$f":"IF(Tabulka2[]=\"\",\"\",VLOOKUP(Tabulka2[],Seznamy!B20:C36,2,0))","v":""}]
[null,null,{"$f":"IF(Tabulka2[]=\"\",\"\",VLOOKUP(Tabulka2[],Seznamy!B21:C37,2,0))","v":""}]

{"sheet":"Ohodnocení","index":2,"n_rows":50,"n_cols":10,"rows_kept":50,"merged":[[2,1,2,6],[5,1,6,1],[5,2,5,5],[5,6,6,6],[29,2,29,4]]}
[]
[]
[null,"Zadávání vstupních údajů - hodnoty kritérií dle varianty"]
[]
[]
[null,"Kritéria","Varianty",{"$nulls":3},"Vliv kriteria*"]
[null,null,"a"," b"," c","d"]
[null,{"$f":"IF('Výběr_Kritéria,Varianty'!B7=\"\",\"\",'Výběr_Kritéria,Varianty'!B7)","v":""},{"$nulls":5},{"$f":"IF(AND(Tabulka4[[#This Row],[Sloupec1]]=\"\",I8>0),\"Varianty nevyplňovat!!\",\"\")","v":""},{"$f":"SUM(Tabulka4[[#This Row],[Sloupec2]:[Sloupec5]])","v":0},"Vliv kriteria: + ... přímý vliv"]
[null,{"$f":"IF('Výběr_Kritéria,Varianty'!B8=\"\",\"\",'Výběr_Kritéria,Varianty'!B8)","v":""},{"$nulls":5},{"$f":"IF(AND(Tabulka4[[#This Row],[Sloupec1]]=\"\",I9>0),\"Varianty nevyplňovat!!\",\"\")","v":""},{"$f":"SUM(Tabulka4[[#This Row],[Sloupec2]:[Sloupec5]])","v":0},"                          - ... nepřímý vliv"]
[null,{"$f":"IF('Výběr_Kritéria,Varianty'!B9=\"\",\"\",'Výběr_Kritéria,Varianty'!B9)","v":""},{"$nulls":5},{"$f":"IF(AND(Tabulka4[[#This Row],[Sloupec1]]=\"\",I10>0),\"Varianty nevyplňovat!!\",\"\")","v":""},{"$f":"SUM(Tabulka4[[#This Row],[Sloupec2]:[Sloupec5]])","v":0}]
[null,{"$f":"IF('Výběr_Kritéria,Varianty'!B10=\"\",\"\",'Výběr_Kritéria,Varianty'!B10)","v":""},{"$nulls":5},{"$f":"IF(AND(Tabulka4[[#This Row],[Sloupec1]]=\"\",I11>0),\"Varianty nevyplňovat!!\",\"\")","v":""},{"$f":"SUM(Tabulka4[[#This Row],[Sloupec2]:[Sloupec5]])","v":0}]
[null,{"$f":"IF('Výběr_Kritéria,Varianty'!B11=\"\",\"\",'Výběr_Kritéria,Varianty'!B11)","v":""},{"$nulls":5},{"$f":"IF(AND(Tabulka4[[#This Row],[Sloupec1]]=\"\",I12>0),\"Varianty nevyplňovat!!\",\"\")","v":""},{"$f":"SUM(Tabulka4[[#This Row],[Sloupec2]:[Sloupec5]])","v":0}]
[null,{"$f":"IF('Výběr_Kritéria,Varianty'!B12=\"\",\"\",'Výběr_Kritéria,Varianty'!B12)","v":""},{"$nulls":5},{"$f":"IF(AND(Tabulka4[[#This Row],[Sloupec1]]=\"\",I13>0),\"Varianty nevyplňovat!!\",\"\")","v":""},{"$f":"SUM(Tabulka4[[#This Row],[Sloupec2]:[Sloupec5]])","v":0}]
[null,{"$f":"IF('Výběr_Kritéria,Varianty'!B13=\"\",\"\",'Výběr_Kritéria,Varianty'!B13)","v":""},{"$nulls":5},{"$f":"IF(AND(Tabulka4[[#This Row],[Sloupec1]]=\"\",I14>0),\"Varianty nevyplňovat!!\",\"\")","v":""},{"$f":"SUM(Tabulka4[[#This Row],[Sloupec2]:[Sloupec5]])","v":0}]
[null,{"$f":"IF('Výběr_Kritéria,Varianty'!B14=\"\",\"\",'Výběr_Kritéria,Varianty'!B14)","v":""},{"$nulls":5},{"$f":"IF(AND(Tabulka4[[#This Row],[Sloupec1]]=\"\",I15>0),\"Varianty nevyplňovat!!\",\"\")","v":""},{"$f":"SUM(Tabulka4[[#This Row],[Sloupec2]:[Sloupec5]])","v":0}]
[null,{"$f":"IF('Výběr_Kritéria,Varianty'!B15=\"\",\"\",'Výběr_Kritéria,Varianty'!B15)","v":""},{"$nulls":5},{"$f":"IF(AND(Tabulka4[[#This Row],[Sloupec1]]=\"\",I16>0),\"Varianty nevyplňovat!!\",\"\")","v":""},{"$f":"SUM(Tabulka4[[#This Row],[Sloupec2]:[Sloupec5]])","v":0}]
[null,{"$f":"IF('Výběr_Kritéria,Varianty'!B16=\"\",\"\",'Výběr_Kritéria,Varianty'!B16)","v":""}]
[null,{"$f":"IF('Výběr_Kritéria,Varianty'!B17=\"\",\"\",'Výběr_Kritéria,Varianty'!B17)","v":""}]
[null,{"$f":"IF('Výběr_Kritéria,Varianty'!B18=\"\",\"\",'Výběr_Kritéria,Varianty'!B18)","v":""}]
[null,{"$f":"IF('Výběr_Kritéria,Varianty'!B19=\"\",\"\",'Výběr_Kritéria,Varianty'!B19)","v":""}]
[null,{"$f":"IF('Výběr_Kritéria,Varianty'!B20=\"\",\"\",'Výběr_Kritéria,Varianty'!B20)","v":""}]
[null,{"$f":"IF('Výběr_Kritéria,Varianty'!B21=\"\",\"\",'Výběr_Kritéria,Varianty'!B21)","v":""}]
[null,{"$f":"IF('Výběr_Kritéria,Varianty'!B22=\"\",\"\",'Výběr_Kritéria,Varianty'!B22)","v":""}]
[null,{"$f":"IF('Výběr_Kritéria,Varianty'!B23=\"\",\"\",'Výběr_Kritéria,Varianty'!B23)","v":""}]
[]
[null,"*Vliv kritéria: + přímý vliv"]
[null,"                   - nepřímý vliv"]
[]
[]
[null,null,"Pomocné hodnoty (vypočtené)."]
[]
[]
[null,null,"d","Pp","Pk","Pa","k"]
[null,null,{"$f":"(MAX(C8:F8)-MIN(C8:F8))/10","v":0},{"$f":"MIN(C8:F8)-C34","v":0},{"$f":"MAX(C8:F8)+C34","v":0},{"$f":"IF(C8>0,AVERAGE(C8:F8),0)","v":0},{"$f":"IF(C8>0,LN(0.5)/LN((F34-D34)/(E34-D34)),0)","v":0}]
[null,null,0,0,0,0,0]
[null,null,0,0,0,0,0]
[null,null,0,0,0,0,0]
[null,null,0,0,0,0,0]
[null,null,0,0,0,0,0]
[null,null,0,0,0,0,0]
[null,null,0,0,0,0,0]
[null,null,0,0,0,0,0]
[null,null,0,0,0,0,0]
[null,null,0,0,0,0,0]
[null,null,0,0,0,0,0]
[null,null,0,0,0,0,0]
[null,null,0,0,0,0,0]
[null,null,0,0,0,0,0]
[null,null,0,0,0,0,0]
[null,null,0,0,0,0,0]

{"sheet":"Výpočet,Hodnocení","index":3,"n_rows":25,"n_cols":6,"rows_kept":25,"merged":[[1,1,1,5],[4,1,5,1],[4,2,4,5]]}
[]
[null,"Vypočtené hodnoty ui,j a pořadí variant."]
[]
[]
[null," Kriteria","Varianty"]
[null,null,"a","b","c","d"]
[null,"K1",{"$f":"IF(Ohodnocení!C8>0,IF(Ohodnocení!G8=\"+\",POWER((Ohodnocení!C8-Ohodnocení!D34)/(Ohodnocení!E34-Ohodnocení!D34),Ohodnocení!G34),1-POWER((Ohodnocení!C8-Ohodnocení!D34)/(Ohodnocení!E34-Ohodnocení!D34),Ohodnocení!G34)),0)","v":0},{"$f":"IF(Ohodnocení!D8>0,IF(Ohodnocení!G8=\"+\",POWER((Ohodnocení!D8-Ohodnocení!D34)/(Ohodnocení!E34-Ohodnocení!D34),Ohodnocení!G34),1-POWER((Ohodnocení!D8-Ohodnocení!D34)/(Ohodnocení!E34-Ohodnocení!D34),Ohodnocení!G34)),0)","v":0},{"$f":"IF(Ohodnocení!E8>0,IF(Ohodnocení!G8=\"+\",POWER((Ohodnocení!E8-Ohodnocení!D34)/(Ohodnocení!E34-Ohodnocení!D34),Ohodnocení!G34),1-POWER((Ohodnocení!E8-Ohodnocení!D34)/(Ohodnocení!E34-Ohodnocení!D34),Ohodnocení!G34)),0)","v":0},{"$f":"IF(Ohodnocení!F8>0,IF(Ohodnocení!G8=\"+\",POWER((Ohodnocení!F8-Ohodnocení!D34)/(Ohodnocení!E34-Ohodnocení!D34),Ohodnocení!G34),1-POWER((Ohodnocení!F8-Ohodnocení!D34)/(Ohodnocení!E34-Ohodnocení!D34),Ohodnocení!G34)),0)","v":0}]
[null,"K2",{"$f":"IF(Ohodnocení!C9>0,IF(Ohodnocení!G9=\"+\",POWER((Ohodnocení!C9-Ohodnocení!D35)/(Ohodnocení!E35-Ohodnocení!D35),Ohodnocení!G35),1-POWER((Ohodnocení!C9-Ohodnocení!D35)/(Ohodnocení!E35-Ohodnocení!D35),Ohodnocení!G35)),0)","v":0},{"$f":"IF(Ohodnocení!D9>0,IF(Ohodnocení!G9=\"+\",POWER((Ohodnocení!D9-Ohodnocení!D35)/(Ohodnocení!E35-Ohodnocení!D35),Ohodnocení!G35),1-POWER((Ohodnocení!D9-Ohodnocení!D35)/(Ohodnocení!E35-Ohodnocení!D35),Ohodnocení!G35)),0)","v":0},{"$f":"IF(Ohodnocení!E9>0,IF(Ohodnocení!G9=\"+\",POWER((Ohodnocení!E9-Ohodnocení!D35)/(Ohodnocení!E35-Ohodnocení!D35),Ohodnocení!G35),1-POWER((Ohodnocení!E9-Ohodnocení!D35)/(Ohodnocení!E35-Ohodnocení!D35),Ohodnocení!G35)),0)","v":0},{"$f":"IF(Ohodnocení!F9>0,IF(Ohodnocení!G9=\"+\",POWER((Ohodnocení!F9-Ohodnocení!D35)/(Ohodnocení!E35-Ohodnocení!D35),Ohodnocení!G35),1-POWER((Ohodnocení!F9-Ohodnocení!D35)/(Ohodnocení!E35-Ohodnocení!D35),Ohodnocení!G35)),0)","v":0}]
[null,"K3",{"$f":"IF(Ohodnocení!C10>0,IF(Ohodnocení!G10=\"+\",POWER((Ohodnocení!C10-Ohodnocení!D36)/(Ohodnocení!E36-Ohodnocení!D36),Ohodnocení!G36),1-POWER((Ohodnocení!C10-Ohodnocení!D36)/(Ohodnocení!E36-Ohodnocení!D36),Ohodnocení!G36)),0)","v":0},{"$f":"IF(Ohodnocení!D10>0,IF(Ohodnocení!G10=\"+\",POWER((Ohodnocení!D10-Ohodnocení!D36)/(Ohodnocení!E36-Ohodnocení!D36),Ohodnocení!G36),1-POWER((Ohodnocení!D10-Ohodnocení!D36)/(Ohodnocení!E36-Ohodnocení!D36),Ohodnocení!G36)),0)","v":0},{"$f":"IF(Ohodnocení!E10>0,IF(Ohodnocení!G10=\"+\",POWER((Ohodnocení!E10-Ohodnocení!D36)/(Ohodnocení!E36-Ohodnocení!D36),Ohodnocení!G36),1-POWER((Ohodnocení!E10-Ohodnocení!D36)/(Ohodnocení!E36-Ohodnocení!D36),Ohodnocení!G36)),0)","v":0},{"$f":"IF(Ohodnocení!F10>0,IF(Ohodnocení!G10=\"+\",POWER((Ohodnocení!F10-Ohodnocení!D36)/(Ohodnocení!E36-Ohodnocení!D36),Ohodnocení!G36),1-POWER((Ohodnocení!F10-Ohodnocení!D36)/(Ohodnocení!E36-Ohodnocení!D36),Ohodnocení!G36)),0)","v":0}]
[null,"K4",{"$f":"IF(Ohodnocení!C11>0,IF(Ohodnocení!G11=\"+\",POWER((Ohodnocení!C11-Ohodnocení!D37)/(Ohodnocení!E37-Ohodnocení!D37),Ohodnocení!G37),1-POWER((Ohodnocení!C11-Ohodnocení!D37)/(Ohodnocení!E37-Ohodnocení!D37),Ohodnocení!G37)),0)","v":0},{"$f":"IF(Ohodnocení!D11>0,IF(Ohodnocení!G11=\"+\",POWER((Ohodnocení!D11-Ohodnocení!D37)/(Ohodnocení!E37-Ohodnocení!D37),Ohodnocení!G37),1-POWER((Ohodnocení!D11-Ohodnocení!D37)/(Ohodnocení!E37-Ohodnocení!D37),Ohodnocení!G37)),0)","v":0},{"$f":"IF(Ohodnocení!E11>0,IF(Ohodnocení!G11=\"+\",POWER((Ohodnocení!E11-Ohodnocení!D37)/(Ohodnocení!E37-Ohodnocení!D37),Ohodnocení!G37),1-POWER((Ohodnocení!E11-Ohodnocení!D37)/(Ohodnocení!E37-Ohodnocení!D37),Ohodnocení!G37)),0)","v":0},{"$f":"IF(Ohodnocení!F11>0,IF(Ohodnocení!G11=\"+\",POWER((Ohodnocení!F11-Ohodnocení!D37)/(Ohodnocení!E37-Ohodnocení!D37),Ohodnocení!G37),1-POWER((Ohodnocení!F11-Ohodnocení!D37)/(Ohodnocení!E37-Ohodnocení!D37),Ohodnocení!G37)),0)","v":0}]
[null,"K5",{"$f":"IF(Ohodnocení!C12>0,IF(Ohodnocení!G12=\"+\",POWER((Ohodnocení!C12-Ohodnocení!D38)/(Ohodnocení!E38-Ohodnocení!D38),Ohodnocení!G38),1-POWER((Ohodnocení!C12-Ohodnocení!D38)/(Ohodnocení!E38-Ohodnocení!D38),Ohodnocení!G38)),0)","v":0},{"$f":"IF(Ohodnocení!D12>0,IF(Ohodnocení!G12=\"+\",POWER((Ohodnocení!D12-Ohodnocení!D38)/(Ohodnocení!E38-Ohodnocení!D38),Ohodnocení!G38),1-POWER((Ohodnocení!D12-Ohodnocení!D38)/(Ohodnocení!E38-Ohodnocení!D38),Ohodnocení!G38)),0)","v":0},{"$f":"IF(Ohodnocení!E12>0,IF(Ohodnocení!G12=\"+\",POWER((Ohodnocení!E12-Ohodnocení!D38)/(Ohodnocení!E38-Ohodnocení!D38),Ohodnocení!G38),1-POWER((Ohodnocení!E12-Ohodnocení!D38)/(Ohodnocení!E38-Ohodnocení!D38),Ohodnocení!G38)),0)","v":0},{"$f":"IF(Ohodnocení!F12>0,IF(Ohodnocení!G12=\"+\",POWER((Ohodnocení!F12-Ohodnocení!D38)/(Ohodnocení!E38-Ohodnocení!D38),Ohodnocení!G38),1-POWER((Ohodnocení!F12-Ohodnocení!D38)/(Ohodnocení!E38-Ohodnocení!D38),Ohodnocení!G38)),0)","v":0}]
[null,"K6",{"$f":"IF(Ohodnocení!C13>0,IF(Ohodnocení!G13=\"+\",POWER((Ohodnocení!C13-Ohodnocení!D39)/(Ohodnocení!E39-Ohodnocení!D39),Ohodnocení!G39),1-POWER((Ohodnocení!C13-Ohodnocení!D39)/(Ohodnocení!E39-Ohodnocení!D39),Ohodnocení!G39)),0)","v":0},{"$f":"IF(Ohodnocení!D13>0,IF(Ohodnocení!G13=\"+\",POWER((Ohodnocení!D13-Ohodnocení!D39)/(Ohodnocení!E39-Ohodnocení!D39),Ohodnocení!G39),1-POWER((Ohodnocení!D13-Ohodnocení!D39)/(Ohodnocení!E39-Ohodnocení!D39),Ohodnocení!G39)),0)","v":0},{"$f":"IF(Ohodnocení!E13>0,IF(Ohodnocení!G13=\"+\",POWER((Ohodnocení!E13-Ohodnocení!D39)/(Ohodnocení!E39-Ohodnocení!D39),Ohodnocení!G39),1-POWER((Ohodnocení!E13-Ohodnocení!D39)/(Ohodnocení!E39-Ohodnocení!D39),Ohodnocení!G39)),0)","v":0},{"$f":"IF(Ohodnocení!F13>0,IF(Ohodnocení!G13=\"+\",POWER((Ohodnocení!F13-Ohodnocení!D39)/(Ohodnocení!E39-Ohodnocení!D39),Ohodnocení!G39),1-POWER((Ohodnocení!F13-Ohodnocení!D39)/(Ohodnocení!E39-Ohodnocení!D39),Ohodnocení!G39)),0)","v":0}]
[null,"K7",{"$f":"IF(Ohodnocení!C14>0,IF(Ohodnocení!G14=\"+\",POWER((Ohodnocení!C14-Ohodnocení!D40)/(Ohodnocení!E40-Ohodnocení!D40),Ohodnocení!G40),1-POWER((Ohodnocení!C14-Ohodnocení!D40)/(Ohodnocení!E40-Ohodnocení!D40),Ohodnocení!G40)),0)","v":0},{"$f":"IF(Ohodnocení!D14>0,IF(Ohodnocení!G14=\"+\",POWER((Ohodnocení!D14-Ohodnocení!D40)/(Ohodnocení!E40-Ohodnocení!D40),Ohodnocení!G40),1-POWER((Ohodnocení!D14-Ohodnocení!D40)/(Ohodnocení!E40-Ohodnocení!D40),Ohodnocení!G40)),0)","v":0},{"$f":"IF(Ohodnocení!E14>0,IF(Ohodnocení!G14=\"+\",POWER((Ohodnocení!E14-Ohodnocení!D40)/(Ohodnocení!E40-Ohodnocení!D40),Ohodnocení!G40),1-POWER((Ohodnocení!E14-Ohodnocení!D40)/(Ohodnocení!E40-Ohodnocení!D40),Ohodnocení!G40)),0)","v":0},{"$f":"IF(Ohodnocení!F14>0,IF(Ohodnocení!G14=\"+\",POWER((Ohodnocení!F14-Ohodnocení!D40)/(Ohodnocení!E40-Ohodnocení!D40),Ohodnocení!G40),1-POWER((Ohodnocení!F14-Ohodnocení!D40)/(Ohodnocení!E40-Ohodnocení!D40),Ohodnocení!G40)),0)","v":0}]
[null,"K8",{"$f":"IF(Ohodnocení!C15>0,IF(Ohodnocení!G15=\"+\",POWER((Ohodnocení!C15-Ohodnocení!D41)/(Ohodnocení!E41-Ohodnocení!D41),Ohodnocení!G41),1-POWER((Ohodnocení!C15-Ohodnocení!D41)/(Ohodnocení!E41-Ohodnocení!D41),Ohodnocení!G41)),0)","v":0},{"$f":"IF(Ohodnocení!D15>0,IF(Ohodnocení!G15=\"+\",POWER((Ohodnocení!D15-Ohodnocení!D41)/(Ohodnocení!E41-Ohodnocení!D41),Ohodnocení!G41),1-POWER((Ohodnocení!D15-Ohodnocení!D41)/(Ohodnocení!E41-Ohodnocení!D41),Ohodnocení!G41)),0)","v":0},{"$f":"IF(Ohodnocení!E15>0,IF(Ohodnocení!G15=\"+\",POWER((Ohodnocení!E15-Ohodnocení!D41)/(Ohodnocení!E41-Ohodnocení!D41),Ohodnocení!G41),1-POWER((Ohodnocení!E15-Ohodnocení!D41)/(Ohodnocení!E41-Ohodnocení!D41),Ohodnocení!G41)),0)","v":0},{"$f":"IF(Ohodnocení!F15>0,IF(Ohodnocení!G15=\"+\",POWER((Ohodnocení!F15-Ohodnocení!D41)/(Ohodnocení!E41-Ohodnocení!D41),Ohodnocení!G41),1-POWER((Ohodnocení!F15-Ohodnocení!D41)/(Ohodnocení!E41-Ohodnocení!D41),Ohodnocení!G41)),0)","v":0}]
[null,"K9",{"$f":"IF(Ohodnocení!C16>0,IF(Ohodnocení!G16=\"+\",POWER((Ohodnocení!C16-Ohodnocení!D42)/(Ohodnocení!E42-Ohodnocení!D42),Ohodnocení!G42),1-POWER((Ohodnocení!C16-Ohodnocení!D42)/(Ohodnocení!E42-Ohodnocení!D42),Ohodnocení!G42)),0)","v":0},{"$f":"IF(Ohodnocení!D16>0,IF(Ohodnocení!G16=\"+\",POWER((Ohodnocení!D16-Ohodnocení!D42)/(Ohodnocení!E42-Ohodnocení!D42),Ohodnocení!G42),1-POWER((Ohodnocení!D16-Ohodnocení!D42)/(Ohodnocení!E42-Ohodnocení!D42),Ohodnocení!G42)),0)","v":0},{"$f":"IF(Ohodnocení!E16>0,IF(Ohodnocení!G16=\"+\",POWER((Ohodnocení!E16-Ohodnocení!D42)/(Ohodnocení!E42-Ohodnocení!D42),Ohodnocení!G42),1-POWER((Ohodnocení!E16-Ohodnocení!D42)/(Ohodnocení!E42-Ohodnocení!D42),Ohodnocení!G42)),0)","v":0},{"$f":"IF(Ohodnocení!F16>0,IF(Ohodnocení!G16=\"+\",POWER((Ohodnocení!F16-Ohodnocení!D42)/(Ohodnocení!E42-Ohodnocení!D42),Ohodnocení!G42),1-POWER((Ohodnocení!F16-Ohodnocení!D42)/(Ohodnocení!E42-Ohodnocení!D42),Ohodnocení!G42)),0)","v":0}]
[null,"K10",{"$f":"IF(Ohodnocení!C17>0,IF(Ohodnocení!G17=\"+\",POWER((Ohodnocení!C17-Ohodnocení!D43)/(Ohodnocení!E43-Ohodnocení!D43),Ohodnocení!G43),1-POWER((Ohodnocení!C17-Ohodnocení!D43)/(Ohodnocení!E43-Ohodnocení!D43),Ohodnocení!G43)),0)","v":0},{"$f":"IF(Ohodnocení!D17>0,IF(Ohodnocení!G17=\"+\",POWER((Ohodnocení!D17-Ohodnocení!D43)/(Ohodnocení!E43-Ohodnocení!D43),Ohodnocení!G43),1-POWER((Ohodnocení!D17-Ohodnocení!D43)/(Ohodnocení!E43-Ohodnocení!D43),Ohodnocení!G43)),0)","v":0},{"$f":"IF(Ohodnocení!E17>0,IF(Ohodnocení!G17=\"+\",POWER((Ohodnocení!E17-Ohodnocení!D43)/(Ohodnocení!E43-Ohodnocení!D43),Ohodnocení!G43),1-POWER((Ohodnocení!E17-Ohodnocení!D43)/(Ohodnocení!E43-Ohodnocení!D43),Ohodnocení!G43)),0)","v":0},{"$f":"IF(Ohodnocení!F17>0,IF(Ohodnocení!G17=\"+\",POWER((Ohodnocení!F17-Ohodnocení!D43)/(Ohodnocení!E43-Ohodnocení!D43),Ohodnocení!G43),1-POWER((Ohodnocení!F17-Ohodnocení!D43)/(Ohodnocení!E43-Ohodnocení!D43),Ohodnocení!G43)),0)","v":0}]
[null,"K11",{"$f":"IF(Ohodnocení!C18>0,IF(Ohodnocení!G18=\"+\",POWER((Ohodnocení!C18-Ohodnocení!D44)/(Ohodnocení!E44-Ohodnocení!D44),Ohodnocení!G44),1-POWER((Ohodnocení!C18-Ohodnocení!D44)/(Ohodnocení!E44-Ohodnocení!D44),Ohodnocení!G44)),0)","v":0},{"$f":"IF(Ohodnocení!D18>0,IF(Ohodnocení!G18=\"+\",POWER((Ohodnocení!D18-Ohodnocení!D44)/(Ohodnocení!E44-Ohodnocení!D44),Ohodnocení!G44),1-POWER((Ohodnocení!D18-Ohodnocení!D44)/(Ohodnocení!E44-Ohodnocení!D44),Ohodnocení!G44)),0)","v":0},{"$f":"IF(Ohodnocení!E18>0,IF(Ohodnocení!G18=\"+\",POWER((Ohodnocení!E18-Ohodnocení!D44)/(Ohodnocení!E44-Ohodnocení!D44),Ohodnocení!G44),1-POWER((Ohodnocení!E18-Ohodnocení!D44)/(Ohodnocení!E44-Ohodnocení!D44),Ohodnocení!G44)),0)","v":0},{"$f":"IF(Ohodnocení!F18>0,IF(Ohodnocení!G18=\"+\",POWER((Ohodnocení!F18-Ohodnocení!D44)/(Ohodnocení!E44-Ohodnocení!D44),Ohodnocení!G44),1-POWER((Ohodnocení!F18-Ohodnocení!D44)/(Ohodnocení!E44-Ohodnocení!D44),Ohodnocení!G44)),0)","v":0}]
[null,"K12",{"$f":"IF(Ohodnocení!C19>0,IF(Ohodnocení!G19=\"+\",POWER((Ohodnocení!C19-Ohodnocení!D45)/(Ohodnocení!E45-Ohodnocení!D45),Ohodnocení!G45),1-POWER((Ohodnocení!C19-Ohodnocení!D45)/(Ohodnocení!E45-Ohodnocení!D45),Ohodnocení!G45)),0)","v":0},{"$f":"IF(Ohodnocení!D19>0,IF(Ohodnocení!G19=\"+\",POWER((Ohodnocení!D19-Ohodnocení!D45)/(Ohodnocení!E45-Ohodnocení!D45),Ohodnocení!G45),1-POWER((Ohodnocení!D19-Ohodnocení!D45)/(Ohodnocení!E45-Ohodnocení!D45),Ohodnocení!G45)),0)","v":0},{"$f":"IF(Ohodnocení!E19>0,IF(Ohodnocení!G19=\"+\",POWER((Ohodnocení!E19-Ohodnocení!D45)/(Ohodnocení!E45-Ohodnocení!D45),Ohodnocení!G45),1-POWER((Ohodnocení!E19-Ohodnocení!D45)/(Ohodnocení!E45-Ohodnocení!D45),Ohodnocení!G45)),0)","v":0},{"$f":"IF(Ohodnocení!F19>0,IF(Ohodnocení!G19=\"+\",POWER((Ohodnocení!F19-Ohodnocení!D45)/(Ohodnocení!E45-Ohodnocení!D45),Ohodnocení!G45),1-POWER((Ohodnocení!F19-Ohodnocení!D45)/(Ohodnocení!E45-Ohodnocení!D45),Ohodnocení!G45)),0)","v":0}]
[null,"K13",{"$f":"IF(Ohodnocení!C20>0,IF(Ohodnocení!G20=\"+\",POWER((Ohodnocení!C20-Ohodnocení!D46)/(Ohodnocení!E46-Ohodnocení!D46),Ohodnocení!G46),1-POWER((Ohodnocení!C20-Ohodnocení!D46)/(Ohodnocení!E46-Ohodnocení!D46),Ohodnocení!G46)),0)","v":0},{"$f":"IF(Ohodnocení!D20>0,IF(Ohodnocení!G20=\"+\",POWER((Ohodnocení!D20-Ohodnocení!D46)/(Ohodnocení!E46-Ohodnocení!D46),Ohodnocení!G46),1-POWER((Ohodnocení!D20-Ohodnocení!D46)/(Ohodnocení!E46-Ohodnocení!D46),Ohodnocení!G46)),0)","v":0},{"$f":"IF(Ohodnocení!E20>0,IF(Ohodnocení!G20=\"+\",POWER((Ohodnocení!E20-Ohodnocení!D46)/(Ohodnocení!E46-Ohodnocení!D46),Ohodnocení!G46),1-POWER((Ohodnocení!E20-Ohodnocení!D46)/(Ohodnocení!E46-Ohodnocení!D46),Ohodnocení!G46)),0)","v":0},{"$f":"IF(Ohodnocení!F20>0,IF(Ohodnocení!G20=\"+\",POWER((Ohodnocení!F20-Ohodnocení!D46)/(Ohodnocení!E46-Ohodnocení!D46),Ohodnocení!G46),1-POWER((Ohodnocení!F20-Ohodnocení!D46)/(Ohodnocení!E46-Ohodnocení!D46),Ohodnocení!G46)),0)","v":0}]
[null,"K14",{"$f":"IF(Ohodnocení!C21>0,IF(Ohodnocení!G21=\"+\",POWER((Ohodnocení!C21-Ohodnocení!D47)/(Ohodnocení!E47-Ohodnocení!D47),Ohodnocení!G47),1-POWER((Ohodnocení!C21-Ohodnocení!D47)/(Ohodnocení!E47-Ohodnocení!D47),Ohodnocení!G47)),0)","v":0},{"$f":"IF(Ohodnocení!D21>0,IF(Ohodnocení!G21=\"+\",POWER((Ohodnocení!D21-Ohodnocení!D47)/(Ohodnocení!E47-Ohodnocení!D47),Ohodnocení!G47),1-POWER((Ohodnocení!D21-Ohodnocení!D47)/(Ohodnocení!E47-Ohodnocení!D47),Ohodnocení!G47)),0)","v":0},{"$f":"IF(Ohodnocení!E21>0,IF(Ohodnocení!G21=\"+\",POWER((Ohodnocení!E21-Ohodnocení!D47)/(Ohodnocení!E47-Ohodnocení!D47),Ohodnocení!G47),1-POWER((Ohodnocení!E21-Ohodnocení!D47)/(Ohodnocení!E47-Ohodnocení!D47),Ohodnocení!G47)),0)","v":0},{"$f":"IF(Ohodnocení!F21>0,IF(Ohodnocení!G21=\"+\",POWER((Ohodnocení!F21-Ohodnocení!D47)/(Ohodnocení!E47-Ohodnocení!D47),Ohodnocení!G47),1-POWER((Ohodnocení!F21-Ohodnocení!D47)/(Ohodnocení!E47-Ohodnocení!D47),Ohodnocení!G47)),0)","v":0}]
[null,"K15",{"$f":"IF(Ohodnocení!C22>0,IF(Ohodnocení!G22=\"+\",POWER((Ohodnocení!C22-Ohodnocení!D48)/(Ohodnocení!E48-Ohodnocení!D48),Ohodnocení!G48),1-POWER((Ohodnocení!C22-Ohodnocení!D48)/(Ohodnocení!E48-Ohodnocení!D48),Ohodnocení!G48)),0)","v":0},{"$f":"IF(Ohodnocení!D22>0,IF(Ohodnocení!G22=\"+\",POWER((Ohodnocení!D22-Ohodnocení!D48)/(Ohodnocení!E48-Ohodnocení!D48),Ohodnocení!G48),1-POWER((Ohodnocení!D22-Ohodnocení!D48)/(Ohodnocení!E48-Ohodnocení!D48),Ohodnocení!G48)),0)","v":0},{"$f":"IF(Ohodnocení!E22>0,IF(Ohodnocení!G22=\"+\",POWER((Ohodnocení!E22-Ohodnocení!D48)/(Ohodnocení!E48-Ohodnocení!D48),Ohodnocení!G48),1-POWER((Ohodnocení!E22-Ohodnocení!D48)/(Ohodnocení!E48-Ohodnocení!D48),Ohodnocení!G48)),0)","v":0},{"$f":"IF(Ohodnocení!F22>0,IF(Ohodnocení!G22=\"+\",POWER((Ohodnocení!F22-Ohodnocení!D48)/(Ohodnocení!E48-Ohodnocení!D48),Ohodnocení!G48),1-POWER((Ohodnocení!F22-Ohodnocení!D48)/(Ohodnocení!E48-Ohodnocení!D48),Ohodnocení!G48)),0)","v":0}]
[null,"K16",{"$f":"IF(Ohodnocení!C23>0,IF(Ohodnocení!G23=\"+\",POWER((Ohodnocení!C23-Ohodnocení!D49)/(Ohodnocení!E49-Ohodnocení!D49),Ohodnocení!G49),1-POWER((Ohodnocení!C23-Ohodnocení!D49)/(Ohodnocení!E49-Ohodnocení!D49),Ohodnocení!G49)),0)","v":0},{"$f":"IF(Ohodnocení!D23>0,IF(Ohodnocení!G23=\"+\",POWER((Ohodnocení!D23-Ohodnocení!D49)/(Ohodnocení!E49-Ohodnocení!D49),Ohodnocení!G49),1-POWER((Ohodnocení!D23-Ohodnocení!D49)/(Ohodnocení!E49-Ohodnocení!D49),Ohodnocení!G49)),0)","v":0},{"$f":"IF(Ohodnocení!E23>0,IF(Ohodnocení!G23=\"+\",POWER((Ohodnocení!E23-Ohodnocení!D49)/(Ohodnocení!E49-Ohodnocení!D49),Ohodnocení!G49),1-POWER((Ohodnocení!E23-Ohodnocení!D49)/(Ohodnocení!E49-Ohodnocení!D49),Ohodnocení!G49)),0)","v":0},{"$f":"IF(Ohodnocení!F23>0,IF(Ohodnocení!G23=\"+\",POWER((Ohodnocení!F23-Ohodnocení!D49)/(Ohodnocení!E49-Ohodnocení!D49),Ohodnocení!G49),1-POWER((Ohodnocení!F23-Ohodnocení!D49)/(Ohodnocení!E49-Ohodnocení!D49),Ohodnocení!G49)),0)","v":0}]
[null,"K17",{"$f":"IF(Ohodnocení!C24>0,IF(Ohodnocení!G24=\"+\",POWER((Ohodnocení!C24-Ohodnocení!D50)/(Ohodnocení!E50-Ohodnocení!D50),Ohodnocení!G50),1-POWER((Ohodnocení!C24-Ohodnocení!D50)/(Ohodnocení!E50-Ohodnocení!D50),Ohodnocení!G50)),0)","v":0},{"$f":"IF(Ohodnocení!D24>0,IF(Ohodnocení!G24=\"+\",POWER((Ohodnocení!D24-Ohodnocení!D50)/(Ohodnocení!E50-Ohodnocení!D50),Ohodnocení!G50),1-POWER((Ohodnocení!D24-Ohodnocení!D50)/(Ohodnocení!E50-Ohodnocení!D50),Ohodnocení!G50)),0)","v":0},{"$f":"IF(Ohodnocení!E24>0,IF(Ohodnocení!G24=\"+\",POWER((Ohodnocení!E24-Ohodnocení!D50)/(Ohodnocení!E50-Ohodnocení!D50),Ohodnocení!G50),1-POWER((Ohodnocení!E24-Ohodnocení!D50)/(Ohodnocení!E50-Ohodnocení!D50),Ohodnocení!G50)),0)","v":0},{"$f":"IF(Ohodnocení!F24>0,IF(Ohodnocení!G24=\"+\",POWER((Ohodnocení!F24-Ohodnocení!D50)/(Ohodnocení!E50-Ohodnocení!D50),Ohodnocení!G50),1-POWER((Ohodnocení!F24-Ohodnocení!D50)/(Ohodnocení!E50-Ohodnocení!D50),Ohodnocení!G50)),0)","v":0}]
[null,"Součet",{"$f":"SUM(C7:C23)","v":0},{"$f":"SUM(D7:D23)","v":0},{"$f":"SUM(E7:E23)","v":0},{"$f":"SUM(F7:F23)","v":0}]
[null,"Hodnocení",{"$f":"_xlfn.RANK.AVG(C24,$C$24:$F$24)","v":2.5},{"$f":"_xlfn.RANK.AVG(D24,$C$24:$F$24)","v":2.5},{"$f":"_xlfn.RANK.AVG(E24,$C$24:$F$24)","v":2.5},{"$f":"_xlfn.RANK.AVG(F24,$C$24:$F$24)","v":2.5}]

{"sheet":"Seznamy","index":4,"n_rows":21,"n_cols":6,"rows_kept":21,"merged":[[1,1,1,2],[1,4,1,8]]}
[]
[null,"Množina dostupných kritérii (konečná)",null,null,"Množina dostupných variant (možnost uživatelské změny popisu varianty)"]
[]
[null,"Specifikace a název kritéria","Jednotky",null,"Varianty","Konkrétní realizace - zadávaná uživatelem"]
[null,"K1   Celková délka valu","m",null,"a","klasické zemědělství"]
[null,"K2   Celková pórovitost","%, bezrozměrné",null,"b ","biozemědělství ve zranitelné oblasti"]
[null,"K3   Efektivní drenážní pórovitost","%, bezrozměrné",null,"c  ","zalesnění nebo sukcese území"]
[null,"K4   Hloubka prokořenění","m",null,"d","agroturistika"]
[null,"K5   Infiltrace, intenzita infiltrace","m/s"]
[null,"K6   Náhradní (ekvivalent.) objem valu","m3"]
[null,"K7   Nasycená hydraulická vodivost","m/s"]
[null,"K8   Poloha agrárního valu","stupně, rel. jednotky"]
[null,"K9   Půdní profil","relativní jednotky"]
[null,"K10 Retenční vodní kapacita","%"]
[null,"K11 Složení agrárního valu","relativní jednotky"]
[null,"K12 Struktura půdy","relativní jednotky"]
[null,"K13 Vegetační kryt","relativní jednotky"]
[null,"K14 Vlhkost","%, bezrozměrné"]
[null,"K15 Způsoby hospodaření","relativní jednotky"]
[null,"K16 Zranitelnost půd. prostředí","relativní jednotky"]
[null,"K17 Zrnitostní složení","%"]